Cogmind - Beta 11.1 @@@ ROGUE MODE // 2022.12.07 @ 09:28:26 Player: deadnoob Result: Destroyed by 8R-AWN with 8R-AWN's Boregun Performance ------------- Evolutions (0) 0 Regions Visited (3) 600 Robots Destroyed (18) 90 Value Destroyed (204) 204 Prototype IDs (25) 500 Alien Tech Used (0) 0 Bonus (381) 381 TOTAL SCORE: 1775 Bonus ------- Follower Combat Kills 81 Aligned with FarCom 300 Cogmind --------- Core Integrity 0/250 Matter 157/300 Energy 82/100 System Corruption 8% Temperature Cool (9) Movement Core (500) Ox9 Location -10/Exiles Parts ------- > --- POWER (1) -------- (None) > --- PROPULSION (2) --- (None) > --- UTILITY (2) ------ Large Storage Unit Hardened Light Armor Plating > --- WEAPON (2) ------- Medium Laser Assault Rifle > --- INVENTORY (15) --- Light Armor Plating Light Armor Plating Hardened Light Armor Plating Peak State ------------ > --- POWER ------------ Improved Ion Engine > --- PROPULSION ------- Light Treads Light Treads > --- UTILITY ---------- Large Storage Unit Light Armor Plating > --- WEAPON ----------- Medium Laser Assault Rifle > --- INVENTORY -------- Improved Ion Engine Light Treads Light Treads Light Armor Plating Light Armor Plating Hardened Light Armor Plating Hardened Light Armor Plating Hardened Light Armor Plating Hardened Light Armor Plating Assault Rifle Assault Rifle Assault Rifle Assault Rifle Light Assault Rifle Light Assault Rifle [Rating: 10] Favorites ----------- Power Improved Ion Engine Engine Improved Ion Engine Propulsion Light Treads Treads Light Treads Leg Aluminum Leg Utility Large Storage Unit Storage Large Storage Unit Processor Signal Interpreter Protection Light Armor Plating Weapon Assault Rifle Energy Gun Medium Laser Ballistic Gun Assault Rifle Build | -11 -10 -10 -10 ------- Run | Scr Mat Min Exi Slots Evolved . | . . . . Power . | . . . . Propulsion . | . . . . Utility . | . . . . Weapon . | . . . . Parts Attached 25 | 3 7 . 15 Power 3 | . 2 . 1 Engine 3 | . 2 . 1 Core . | . . . . Reactor . | . . . . Propulsion 5 | 2 1 . 2 Treads 5 | 2 1 . 2 Leg . | . . . . Wheel . | . . . . Hover . | . . . . Flight . | . . . . Utility 8 | . 4 . 4 Device . | . . . . Storage 2 | . 2 . . Processor 1 | . 1 . . Hackware . | . . . . Protection 5 | . 1 . 4 Artifact . | . . . . Weapon 9 | 1 . . 8 Energy Gun 1 | . . . 1 Energy Cannon . | . . . . Ballistic Gun 8 | 1 . . 7 Ballistic Cannon . | . . . . Launcher . | . . . . Special Weapon . | . . . . Impact Weapon . | . . . . Slashing Weapon . | . . . . Piercing Weapon . | . . . . Special Melee Weapon . | . . . . Unidentified Prototypes . | . . . . Parts Lost 15 | . . . 15 Power 2 | . . . 2 Propulsion 4 | . . . 4 Utility 3 | . . . 3 Weapon 6 | . . . 6 Highest Loss Streak 9 | . . . 9 To Critical Strikes 6 | . . . 6 Average Slot Usage (%) 96 | . 97 100 95 Engine 13 | . 14 14 13 Treads 26 | . 27 28 24 Storage 14 | . 14 14 14 Processor 1 | . 2 . . Protection 12 | . 9 14 13 Energy Gun 13 | . 14 14 11 Ballistic Gun 14 | . 14 14 16 Naked Turns . | . . . . Heaviest Build 36 | 14 34 34 36 Greatest Support 40 | 40 40 40 40 Greatest Overweight (x) 9 | . . . 9 Average Overweight (x) . | . . . . Largest Inventory Capacity 15 | 8 15 15 15 Average Capacity 14 | 8 14 15 15 Most Carried 15 | 6 15 15 15 Average Carried 11 | 6 8 15 12 Final Capacity 15 | 8 15 15 15 Final Carried 15 | 6 15 15 3 Class Distribution -------------------- 100% | Mutant Dominant Class ---------------- Mutant | -10/Materials Mutant | -10/Mines Mutant | -10/Exiles Resources | -11 -10 -10 -10 ----------- Run | Scr Mat Min Exi Matter Collected 701 | 195 129 77 300 Remotely . | . . . . Salvage Created 452 | . 341 52 59 Parts 43 | . 30 13 . Haulers Intercepted 2 | . 2 . . Recyclers Shooed 2 | . 1 1 . Parts Field Recycled . | . . . . Retrieved Matter . | . . . . Parts Self-Destructed . | . . . . Prevented . | . . . . Kills | -11 -10 -10 -10 ------- Run | Scr Mat Min Exi Combat Hostiles Destroyed 18 | . 11 3 4 Guns 18 | . 11 3 4 Classes Destroyed 5 | . 4 . 1 Worker 2 | . 1 1 . Hauler 2 | . 2 . . Swarmer 12 | . 9 3 . Grunt 2 | . 2 . . Assembled 4 | . . . 4 Best Kill Streak 4 | . 4 3 4 Combat Bots Only 4 | . 3 3 4 Max Kills in Single Turn 1 | . 1 1 1 Gunslinging . | . . . . Exploded . | . . . . Melee . | . . . . Uniques/NPCs Destroyed . | . . . . Combat | -11 -10 -10 -10 -------- Run | Scr Mat Min Exi Damage Taken 2339 | . 433 67 1839 Core 251 | . 64 9 178 Absorbed by Shields . | . . . . Regen/Repaired (Parts) 130 | . 130 . . Core Remaining (%) 100 | 100 . . . Volleys Fired 128 | . 46 5 77 Largest 2 | . 2 2 2 Hottest 70 | . 70 70 70 Shots Fired 247 | . 90 10 147 Gun 247 | . 90 10 147 Cannon . | . . . . Launcher . | . . . . Special . | . . . . Kinetic 183 | . 46 5 132 Thermal 64 | . 44 5 15 Explosive . | . . . . Electromagnetic . | . . . . Robot Hit Streak 11 | . 7 2 11 Robot Miss Streak 7 | . 7 2 3 Penetration Max . | . . . . Secondary Targets 3 | . 1 . 2 Max Gunslinging Chain 1 | . 1 . 1 Shots Hit Robots 154 | . 46 4 104 Core Hits 45 | . 21 3 21 Critical Kills . | . . . . Critical Parts Destroyed . | . . . . Critical Strikes 4 | . 2 . 2 Burn 3 | . 2 . 1 Destroy 1 | . . . 1 Melee Attacks . | . . . . Impact . | . . . . Slashing . | . . . . Piercing . | . . . . Sneak Attacks . | . . . . Combat Hostiles . | . . . . Follow-up Attacks . | . . . . Damage Inflicted 1911 | . 660 73 1178 Guns 1854 | . 618 58 1178 Cannons . | . . . . Explosions . | . . . . Melee . | . . . . Ramming 57 | . 42 15 . Kinetic 1384 | . 316 16 1052 Thermal 470 | . 302 42 126 Explosive . | . . . . Electromagnetic . | . . . . Impact . | . . . . Slashing . | . . . . Piercing . | . . . . Highest Corruption 8 | . . . 8 Average Corruption 7 | . . . 7 Corruption Purged . | . . . . Corruption Blocked . | . . . . Effects 10 | . . . 10 Message Errors 1 | . . . 1 Matter Fused 4 | . . . 4 Heat Flow Errors 2 | . . . 2 Weapon Failures 3 | . . . 3 Overload Shots . | . . . . Overflow Damage . | . . . . Projectiles . | . . . . Explosions . | . . . . Melee . | . . . . Knockbacks . | . . . . Impact . | . . . . Kinetic . | . . . . Secondary . | . . . . Self-Inflicted Damage . | . . . . Shots . | . . . . Rammed 12 | . 8 4 . Targets Rammed 13 | . 8 5 . Kicked . | . . . . Crushed 1 | . . 1 . Highest Temperature 287 | . 126 63 287 Average Temperature 72 | . 39 29 113 Received Heat Transfer 48 | . 48 . . Effects 1 | . . . 1 Interference 1 | . . . 1 Siege Activations . | . . . . Robots Corrupted . | . . . . Combat Hostiles . | . . . . Parts Fried . | . . . . Impact Corruptions . | . . . . Robots Melted . | . . . . Combat Hostiles . | . . . . Parts Melted 3 | . 3 . . Heat Transferred 1563 | . 1036 111 416 Parts Sabotaged . | . . . . Parts Stolen . | . . . . Parts Stripped . | . . . . Power Chain Reactions . | . . . . Missiles Intercepted . | . . . . Alert | -11 -10 -10 -10 ------- Run | Scr Mat Min Exi Peak Influence 232 | . 232 185 . Initial 19 | . . 19 . Average 87 | . 87 87 . Maximum Alert Level 1 | . 1 . . Low Security (%) 96 | 100 95 100 . Level 1 3 | . 4 . . Level 2 . | . . . . Level 3 . | . . . . Level 4 . | . . . . Level 5 . | . . . . High Security . | . . . . Max Security . | . . . . Squads Dispatched 4 | . 3 1 . Investigation 4 | . 3 1 . Extermination . | . . . . Reinforcement . | . . . . Assault . | . . . . Garrison . | . . . . Intercept . | . . . . Searches Triggered . | . . . . Construction Impeded . | . . . . Haulers Reinforced . | . . . . Active Scanning Responses . | . . . . Cargo Convoy Interrupts . | . . . . Stealth | -11 -10 -10 -10 --------- Run | Scr Mat Min Exi Distress Signals 2 | . 2 . . Communications Jammed . | . . . . Distress Signals . | . . . . Times Spotted 41 | . 23 10 8 Peak Tracking Total 9 | . 3 3 9 Tactical Retreats 3 | . 2 1 . Traps | -11 -10 -10 -10 ------- Run | Scr Mat Min Exi Traps Triggered . | . . . . Indirectly . | . . . . Trap Hack Attempts . | . . . . Triggered . | . . . . Disarmed 4 | . 4 . . Reprogrammed . | . . . . Reused . | . . . . Traps Extracted . | . . . . Installed . | . . . . Triggered . | . . . . Exploded 3 | . . . 3 Machines | -11 -10 -10 -10 ---------- Run | Scr Mat Min Exi Machines Disabled 4 | . 1 . 3 Max in Single Turn 1 | . 1 . 1 Machines Sabotaged . | . . . . Garrisons Compromised . | . . . . Overloaded Fab Kills . | . . . . Hacking | -11 -10 -10 -10 --------- Run | Scr Mat Min Exi Machines Accessed 13 | . 10 1 2 Terminals 7 | . 7 . . Fabricators . | . . . . Repair Stations 1 | . 1 . . Recycling Units 2 | . 2 . . Scanalyzers . | . . . . Garrison Access . | . . . . Total Hacks 36 | . 33 1 2 Successful 18 | . 15 1 2 Failed 17 | . 17 . . Catastrophic . | . . . . Database Lockouts 1 | . 1 . . Manual 20 | . 19 . 1 Terminals 26 | . 26 . . Fabricators . | . . . . Repair Stations 2 | . 2 . . Recycling Units 5 | . 5 . . Scanalyzers . | . . . . Garrison Access . | . . . . Terminal Hacks 11 | . 8 1 2 Record 1 | . . . 1 Robot Analysis 4 | . 4 . . Prototype ID Bank 1 | . 1 . . Open Door 1 | . . 1 . Disarm Traps 1 | . 1 . . Zone Layout 2 | . 2 . . EX-Prototype ID Bank 1 | . . . 1 Fabricator Hacks . | . . . . Repair Station Hacks 2 | . 2 . . Scan Component 1 | . 1 . . Repair 1 | . 1 . . Recycling Unit Hacks 1 | . 1 . . Retrieve Components 1 | . 1 . . Scanalyzer . | . . . . Garrison Access Hacks . | . . . . Unauthorized Hacks 4 | . 4 . . Terminals 2 | . 2 . . Assimilate 1 | . 1 . . Botnet 1 | . 1 . . Fabricators . | . . . . Repair Stations . | . . . . Recycling Units 2 | . 2 . . Tunnel 2 | . 2 . . Scanalyzers . | . . . . Garrison Access . | . . . . Data Cores Recovered . | . . . . Used . | . . . . Hacking Detections 8 | . 8 . . Full Trace Events 1 | . 1 . . Feedback Events . | . . . . Feedback Blocked . | . . . . Robot Schematics Acquired . | . . . . Robots Built . | . . . . Authchips . | . . . . Time . | . . . . Total Robot Build Rating . | . . . . Part Schematics Acquired . | . . . . Parts Built . | . . . . Authchips . | . . . . Time . | . . . . Total Part Build Rating . | . . . . Parts Repaired 1 | . 1 . . Time 26 | . 26 . . Parts Recycled . | . . . . Recycled Matter . | . . . . Retrieved Matter . | . . . . Retrieved Components 10 | . 10 . . Parts Scanalyzed . | . . . . Part Schematics Acquired . | . . . . Parts Damaged . | . . . . Bothacking | -11 -10 -10 -10 ------------ Run | Scr Mat Min Exi Used RIF Installer . | . . . . Robots Hacked . | . . . . Non-combat . | . . . . Combat . | . . . . Robot Hacks Applied . | . . . . Relay Couplers Released . | . . . . Fabnet Peak Effective % . | . . . . Robots Rewired . | . . . . Allies Hacked . | . . . . Hacks Repelled . | . . . . Allies | -11 -10 -10 -10 -------- Run | Scr Mat Min Exi Total Allies 4 | . 1 3 . Largest Group 3 | . 1 3 . Highest-Rated Group 40 | . 10 40 . Highest-Rated Ally 16 | . 10 16 . Total Orders 4 | . 4 . . STAY 2 | . 2 . . FOLLOW 2 | . 2 . . Ally Attacks 22 | . . 22 . Total Damage 259 | . . 259 . Kills 5 | . . 5 . Allies Corrupted . | . . . . Allies Melted . | . . . . Intel | -11 -10 -10 -10 ------- Run | Scr Mat Min Exi Robot Analysis Total 4 | . 4 . . Derelict Logs Recovered 1 | . . 1 . Drone Launches . | . . . . Drone Recoveries . | . . . . Exploration | -11 -10 -10 -10 ------------- Run | Scr Mat Min Exi Turns Passed 2886 | 5 1341 453 1087 Spaces Moved 1462 | 1 683 265 513 Core 1 | . . . 1 Treads 1461 | 1 683 265 512 Legs . | . . . . Wheels . | . . . . Hover . | . . . . Flight . | . . . . Fastest Speed 160 | 160 160 160 160 Average Speed 160 | 160 160 160 160 Slowest Speed 500 | 160 160 160 500 Overloaded Moves . | . . . . Propulsion Burnouts . | . . . . Robots Hopped . | . . . . Cave-ins Triggered . | . . . . Exploration Rate (%) 50 | 2 85 56 60 Regions Visited 3 Branch Regions 2 Pre-discovered Areas 4 | . 2 1 1 Known Exits Taken . | . . . . Unknown Exits Taken 3 | 1 1 1 . Scrap Searched . | . . . . Spaces Dug . | . . . . Terrain Destroyed . | . . . . Melee . | . . . . Projectile . | . . . . AOE . | . . . . Terrain Rammed . | . . . . Walls Destroyed . | . . . . Machines Disabled . | . . . . Actions | -11 -10 -10 -10 --------- Run | Scr Mat Min Exi Total 1769 | 3 848 281 637 Wait 81 | . 62 7 12 Move 1459 | . 682 264 513 Hop . | . . . . Pick Up 33 | . 23 . 10 Fast Attach 4 | . 4 . . Attach 12 | . . . 12 Detach 2 | . 2 . . Swap 9 | 3 3 . 3 Drop 28 | . 18 . 10 Fire 128 | . 46 5 77 Melee . | . . . . Ram . | . . . . Kick . | . . . . Crush 13 | . 8 5 . Escape Stasis . | . . . . Rewire . | . . . . Trap . | . . . . Miscellaneous . | . . . . Route ------- -11/Scrapyard -10/Materials (discovered 4 exits: [*Mat x3] / *Min) -10/Mines (discovered 2 exits: [*Mat] / *Exi) -10/Exiles History --------- Turn | Location | Event 6 | -11/Scrapyard | Discovered new exit (range 0) 6 | -11/Scrapyard | Entered Materials 105 | -10/Materials | Discovered new exit (range 14) 314 | -10/Materials | Build established: Mutant 411 | -10/Materials | Discovered new exit (range 15) 621 | -10/Materials | Central database locked down 823 | -10/Materials | Repaired Lgt. Treads 937 | -10/Materials | Discovered new exit (range 10) 992 | -10/Materials | Discovered new exit (range 16) 1347 | -10/Materials | Entered Mines 1411 | -10/Mines | Assisted by bots powering up and referring to "LRC-V3" 1434 | -10/Mines | Discovered new exit (range 11) 1574 | -10/Mines | Assembled infested the area 1736 | -10/Mines | Met a Derelict shopkeep closing up shop 1793 | -10/Mines | Discovered new exit (range 5) 1800 | -10/Mines | Entered Exiles 1840 | -10/Exiles | Met 8R-AWN 1866 | -10/Exiles | Met EX-HEX 1928 | -10/Exiles | Met EX-DEC 1936 | -10/Exiles | Learned location of Zion (-6) 2424 | -10/Exiles | Met EX-BIN 2441 | -10/Exiles | Aligned with FarCom system 2443 | -10/Exiles | Given EX-Vault access code 2483 | -10/Exiles | Opened EX-Vault 2520 | -10/Exiles | Warned to stay clear of 0b10 Research branches 2603 | -10/Exiles | Attacked by the Exiles 2694 | -10/Exiles | Lost 4 parts (2n1u1w) 2757 | -10/Exiles | Core integrity fell below 50% 2862 | -10/Exiles | Lost 9 parts (2p2n1u4w) 2866 | -10/Exiles | Core integrity fell below 20% 2887 | -10/Exiles | Destroyed by 8R-AWN with 8R-AWN's Boregun Last Messages --------------- 02870_ HV Slug penetrates Wall. 02870_ Penetrated by HV Slug. 02870_ HV Slug penetrates Wall. 02874_ Penetrated by HV Slug. 02874_ HV Slug penetrates Wall. 02878_ Penetrated by HV Slug. 02878_ Critical hit (Destroy). 02878_ Hrd. Light Armor Plating destroyed. 02878_ HV Slug penetrates Wall. 02878_ Penetrated by HV Slug. 02878_ HV Slug penetrates Wall. 02879_ USEZWVEPNPWHHHEUVMOH5DT:OTLVEZ1/JJ 02880_ Wall collapses. 02882_ Penetrated by HV Slug. 02882_ Critical hit (Destroy). 02882_ Lgt. Assault Rifle destroyed. 02882_ HV Slug penetrates Earth. 02882_ Penetrated by HV Slug. 02882_ HV Slug penetrates Earth. 02887_ Penetrated by HV Slug. Map ----- +----------------------------------------------------+ | ?????????????????????????????????????????????????? | | ?????????????????????????????????????????????????? | | ?????????????????????????????????????????????????? | | ?????????????????????????????????????????????????? | | ?????????????????????????????????????????????????? | | ????????????? ???????????????????????????????????? | | ??????????? ??????????????????????????????????? | | ?????????? ??????????????????????????????????? | | ??????????# ?????????????????????????????????? | | ??????????# ?????????????????????????????????? | | ???????????# ?????????????#######????????????? | | ???????????# #######??????#!!! "#????????????? | | ???????????# #""##?????# "#????????????? | | ????????????# #?????# "#????????????? | | ????????????##" ##???## " #????????????# | | ????????????#"" #####" "#???????????? | | ???????????????# ##" ""#????????????" | | ????????????????# #"" #??????????????" | | ???????????????????# #?????????????"" | | ???????????????????#### ##????????????"" | | ??????????????????????### ####????????? | | ????????????????########" """#??????????" | | ????????????????# !!""""" g "#??????????# | | ????????????????#! %%%###"" % """###???### | | ????????????????# % ;###" % ""#####X# | | ????????????????# @!;#??#" | | ????????????????# !" "" ;;;#??#"# | | ????????????????######;;;; #??#### | | ????????????????????# # #?????### | | ???????????????????# # #???????### | | ??????????????????# # # ## #?????????## | | ??????????????????#?# #? ?? #??????????## | | ???????????????????? ?# ?? #???????????##" | | ???????????????????##?? #?? #????????????#""" | | ??????????????????????? ???##????????????#" | | ??????????????????????? ?????????????????"" | | ?????????????????????? #?????????????????""" | | ?????????????????????? ??????????????????"" | | ?????????????????????? ???????????????????" | | ?????????????????????????????????????????" | | ?????????????????????????????????????????"" | | ?????????????????????????????????????????? | | ??????????????????????????????????????????" | | ????????????????????????????????????????????" | | ?????????????????????????????????????????????????? | | ?????????????????????????????????????????????????? | | ?????????????????????????????????????????????????? | | ?????????????????????????????????????????????????? | | ?????????????????????????????????????????????????? | | ?????????????????????????????????????????????????? | +----------------------------------------------------+ Best States ------------- Heat Dissipation 25 Energy Generation 12 Energy Capacity 265 Matter Stores 300 Matter Capacity 300 Sight Range 16 Terrain Scan Density 10 Armor Coverage 150 Evasion (%) 40 Recoil Reduction 2 Item Schematics ----------------- None Robot Schematics ------------------ None Fabricated ------------ Nothing Alien Tech Used ----------------- None Achievements -------------- None Challenges ------------ None Game ------ Seed CarbideHugePlating Manual? 0 Play Time 00:16:20 Cumulative 152.2 hours Start 2022.12.07 @ 09:10:48 End 2022.12.07 @ 09:28:26 Sessions 1 Manual Loads 0 Difficulty Rogue Special Mode None Game No. 187 Rogue 187 Adventurer 0 Explorer 0 Win Type - Total 2 Types 1/0/0/1/0/0/0/0/0 Lore% 77 Gallery% 77 Achievement% 62 Wizard Run 0 Options --------- ASCII 0 Keyboard 0 Movement Numpad Keybinds 0 Fullscreen 2 Font 18/SmallcapsGlow Map View 76x50 Tactical HUD 1 Map Filters NONE Filters NONE Steam 1 RUN: d54a6b9f-eac8-4337-8298-b69990988046